bitfinex-derivatives/quotes_BTCF0:USTF0_20250602
["timestamp","ask_amount","ask_price","bid_price","bid_amount"]
[1748907471312,0.30221255,105840.0,105830.0,1.94935092]
[1748907473801,0.30221255,105840.0,105830.0,1.94856746]
[1748907475711,0.30221255,105840.0,105830.0,1.84399502]
[1748907476014,0.01034165,105840.0,105830.0,1.84399502]
[1748907476317,0.01034165,105840.0,105830.0,1.99114062]
[1748907476318,0.01014165,105840.0,105830.0,1.99114062]
[1748907476522,0.19921255,105840.0,105830.0,1.99114062]
[1748907476707,0.19901255,105840.0,105830.0,1.99114062]
[1748907476913,0.19921255,105840.0,105830.0,1.99114062]
[1748907477117,0.19921255,105840.0,105830.0,1.89513818]
[1748907477419,0.19921255,105840.0,105830.0,2.06863847]
[1748907478209,0.19921255,105840.0,105830.0,2.27290922]
[1748907478608,0.19921255,105840.0,105830.0,2.06863847]
[1748907479023,0.01034165,105840.0,105830.0,2.06863847]
[1748907480521,0.01034165,105840.0,105830.0,2.06779945]
[1748907482518,0.01034165,105840.0,105830.0,1.93799662]
[1748907482723,0.01034165,105840.0,105830.0,2.06779945]
[1748907483124,0.01034165,105840.0,105830.0,2.06778162]
[1748907484825,0.19921255,105840.0,105830.0,1.61170162]
[1748907485021,0.19921255,105840.0,105830.0,2.06766162]
[1748907485426,0.04334165,105840.0,105830.0,2.08488208]
[1748907485627,0.01034165,105840.0,105830.0,1.81766547]
[1748907487628,0.01034165,105840.0,105830.0,2.88874547]
[1748907491122,0.04384165,105840.0,105830.0,2.88874547]
[1748907491326,0.04384165,105840.0,105830.0,2.88873277]
[1748907492030,0.23271265,105840.0,105830.0,2.88873277]
[1748907492229,0.04384165,105840.0,105830.0,2.88873277]
[1748907492435,0.07784165,105840.0,105830.0,2.43277277]
[1748907492726,0.07784165,105840.0,105830.0,2.88849277]
[1748907492922,0.10994165,105840.0,105830.0,2.88849277]
[1748907493727,0.10394165,105840.0,105830.0,2.89349277]
[1748907494231,0.29281265,105840.0,105830.0,2.89349277]
[1748907494432,0.29081265,105840.0,105830.0,2.89749277]
[1748907495437,0.29081265,105840.0,105830.0,3.06991704]
[1748907497034,0.29081265,105840.0,105830.0,2.82684751]
[1748907497231,0.29081265,105840.0,105830.0,2.38848298]
[1748907497438,0.29081265,105840.0,105830.0,2.08603418]
[1748907497631,0.29081265,105840.0,105830.0,2.90739321]
[1748907497834,0.29081265,105840.0,105830.0,2.76024761]
[1748907498231,0.29081265,105840.0,105830.0,2.19156761]
[1748907498540,0.78140278,105840.0,105830.0,1.63179365]
[1748907498757,0.91119291,105840.0,105830.0,0.69019809]
[1748907499038,1.26568091,105840.0,105830.0,0.60948068]
[1748907499339,1.25568091,105840.0,105830.0,0.97395683]
[1748907499929,1.25568091,105840.0,105830.0,0.40531683]
[1748907500137,1.25568091,105840.0,105830.0,0.25141683]
[1748907500338,1.25568091,105840.0,105830.0,0.82001683]
[1748907500640,1.25568091,105840.0,105830.0,0.40315377]
[1748907500641,1.26568091,105840.0,105830.0,0.40315377]
[1748907500940,1.26568091,105840.0,105830.0,0.85467377]
[1748907501143,1.26768091,105840.0,105830.0,0.84967377]
[1748907501440,1.14398799,105840.0,105830.0,0.39415377]
[1748907501638,1.14398799,105840.0,105830.0,0.84967377]
[1748907502341,1.14398799,105840.0,105830.0,0.84963377]
[1748907502735,1.14398799,105840.0,105830.0,0.35]
[1748907502943,1.14398799,105840.0,105830.0,0.80548]
[1748907504338,0.89398799,105840.0,105830.0,0.80548]
[1748907504542,1.01410065,105840.0,105830.0,0.77714]
[1748907504841,1.14398799,105840.0,105830.0,0.7488]
[1748907505436,1.14398799,105840.0,105830.0,0.74876]
[1748907506140,0.89398799,105840.0,105830.0,0.74876]
[1748907506935,0.89398799,105840.0,105830.0,0.29332]
[1748907507133,0.89398799,105840.0,105830.0,0.74872]
[1748907507344,0.89378799,105840.0,105830.0,0.74872]
[1748907508443,1.02367533,105840.0,105830.0,0.29332]
[1748907508843,1.02367533,105840.0,105830.0,0.74868]
[1748907509245,1.02367533,105840.0,105830.0,0.29332]
[1748907511850,0.89378799,105840.0,105830.0,0.29332]
[1748907514549,0.89378799,105840.0,105830.0,0.26498]
[1748907514848,0.89378799,105840.0,105830.0,0.23664]
[1748907517653,0.79929999,105840.0,105830.0,0.23664]
[1748907523764,0.79929999,105840.0,105830.0,0.26884]
[1748907524552,0.79929999,105840.0,105830.0,0.2405]
[1748907524757,0.79929999,105840.0,105830.0,0.21216]
[1748907525059,0.79929999,105840.0,105830.0,0.24346]
[1748907525254,0.92911735,105840.0,105830.0,0.24346]
[1748907525460,0.92911735,105840.0,105830.0,0.27656]
[1748907525658,0.98790989,105840.0,105830.0,0.27656]
[1748907526759,0.98790989,105840.0,105830.0,0.32065239]
[1748907527764,0.98790989,105840.0,105830.0,0.14069239]
[1748907528673,1.076257,105840.0,105830.0,0.19935925]
[1748907529669,1.076257,105840.0,105830.0,0.33025049]
[1748907530973,1.076257,105840.0,105830.0,0.34221853]
[1748907533063,0.84700465,105840.0,105830.0,0.53110533]
[1748907533264,0.62880519,105840.0,105830.0,0.91095768]
[1748907533470,0.62880519,105840.0,105830.0,1.32101526]
[1748907533471,0.25800519,105840.0,105830.0,1.32101526]
[1748907533771,0.19901265,105840.0,105830.0,1.23274125]
[1748907533973,0.19921265,105840.0,105830.0,1.35042719]
[1748907534164,0.19901265,105840.0,105830.0,1.35042719]
[1748907534474,0.19921265,105840.0,105830.0,1.23274125]
[1748907535171,0.19921265,105840.0,105830.0,1.23691211]
[1748907535962,0.19921265,105840.0,105830.0,1.23266257]
[1748907536378,0.56001265,105840.0,105830.0,1.04377367]
[1748907536570,0.19921265,105840.0,105830.0,1.32085281]
[1748907536973,0.56001265,105840.0,105830.0,1.32085281]
[1748907537571,0.19921265,105840.0,105830.0,1.32085281]
[1748907538079,0.19921265,105840.0,105830.0,1.19107914]
[1748907538270,0.19921265,105840.0,105830.0,1.32085281]
[1748907538569,0.56001265,105840.0,105830.0,1.32085281]
[1748907541475,0.19921265,105840.0,105830.0,1.32085281]
[1748907542680,0.56001265,105840.0,105830.0,1.32085281]
[1748907544587,0.56001265,105840.0,105830.0,1.46346768]
[1748907545989,0.19921265,105840.0,105830.0,1.46346768]
[1748907548094,0.19921265,105840.0,105830.0,1.46346035]
[1748907550085,0.19921265,105840.0,105830.0,1.36771603]
[1748907551596,0.19921265,105840.0,105830.0,1.46346035]
[1748907552094,0.19921265,105840.0,105830.0,1.36771886]
[1748907552295,0.19921265,105840.0,105830.0,0.91295886]
[1748907552496,0.19921265,105840.0,105830.0,1.36711886]
[1748907555199,0.19921265,105840.0,105830.0,1.36715473]
[1748907555400,0.19921265,105840.0,105830.0,1.46289905]
[1748907555993,0.19921265,105840.0,105830.0,1.36715473]
[1748907556396,0.56001265,105840.0,105830.0,0.91299473]
[1748907556704,0.32902219,105840.0,105830.0,1.36703473]
[1748907556897,0.19921265,105840.0,105830.0,1.36703473]
[1748907557800,0.19921265,105840.0,105830.0,1.36699613]
[1748907558506,0.19921265,105840.0,105830.0,1.39653043]
[1748907558801,0.32902219,105840.0,105830.0,0.52327559]
[1748907559002,0.81963173,105840.0,105830.0,1.02231986]
[1748907559203,0.91543173,105840.0,105830.0,1.15750689]
[1748907559406,0.91543173,105840.0,105830.0,1.11343149]
[1748907559809,0.91543173,105840.0,105830.0,1.06935767]
[1748907560008,0.78562219,105840.0,105830.0,1.10195767]
[1748907560398,0.65581265,105840.0,105830.0,1.33495891]
[1748907560605,0.62401265,105840.0,105830.0,1.46476845]
[1748907560805,0.62401265,105840.0,105830.0,1.50883297]
[1748907561110,0.62401265,105840.0,105830.0,1.26326407]
[1748907561306,0.62401265,105840.0,105830.0,1.45215297]
[1748907562217,0.26321265,105840.0,105830.0,1.36819362]
[1748907562605,0.26301265,105840.0,105830.0,1.30939848]
[1748907562911,0.26321265,105840.0,105830.0,1.4051428]
[1748907563105,0.62401265,105840.0,105830.0,1.4051428]
[1748907563305,0.26321265,105840.0,105830.0,1.4051428]
[1748907563606,0.62401265,105840.0,105830.0,1.40515992]
[1748907564011,0.62401265,105840.0,105830.0,1.36825845]
[1748907564408,0.26321265,105840.0,105830.0,1.32651293]
[1748907564709,0.01014165,105840.0,105830.0,2.03237587]
[1748907564910,0.01034165,105840.0,105830.0,1.87242211]
[1748907565108,0.01014165,105840.0,105830.0,2.01956771]
[1748907565307,0.01014165,105840.0,105830.0,2.36394993]
[1748907565505,0.01014165,105840.0,105830.0,2.23419328]
[1748907565711,0.01014165,105840.0,105830.0,2.35426429]
[1748907565919,0.01034165,105840.0,105830.0,2.35426429]
[1748907566209,0.19921245,105840.0,105830.0,2.10426429]
[1748907566512,0.19921245,105840.0,105830.0,1.98419328]
[1748907566712,0.19921245,105840.0,105830.0,2.10426429]
[1748907567216,0.19921245,105840.0,105830.0,2.1041389]
[1748907567414,0.19921245,105840.0,105830.0,2.09197708]
[1748907568015,0.01034165,105840.0,105830.0,2.09197708]
[1748907568609,0.19921265,105840.0,105830.0,2.09197708]
[1748907568811,0.19921265,105840.0,105830.0,1.98406789]
[1748907570007,0.19921265,105840.0,105830.0,1.93065928]
[1748907570410,0.01034165,105840.0,105830.0,1.93065928]
[1748907570611,0.19921225,105840.0,105830.0,1.93065928]
[1748907571421,0.01034165,105840.0,105830.0,1.93065928]
[1748907571619,0.01034165,105840.0,105830.0,1.93490882]
[1748907572518,0.01034165,105840.0,105830.0,1.93065928]
[1748907574322,0.19921265,105840.0,105830.0,1.93065928]
[1748907574524,0.19921265,105840.0,105830.0,1.83617128]
[1748907574923,0.19921265,105840.0,105830.0,1.83612741]
[1748907575424,0.19921265,105840.0,105830.0,1.93195327]
[1748907576422,0.19921265,105840.0,105830.0,2.03739331]
[1748907576721,0.19921265,105840.0,105830.0,1.89024771]
[1748907576917,0.19921265,105840.0,105830.0,1.43628771]
[1748907577114,0.19921265,105840.0,105830.0,1.88980771]
[1748907578415,0.19921265,105840.0,105830.0,2.25060771]
[1748907578819,0.19921265,105840.0,105830.0,2.25059801]
[1748907582328,0.19921265,105840.0,105830.0,2.21058891]
[1748907582523,0.19921265,105840.0,105830.0,2.24982532]
[1748907582716,0.19921265,105840.0,105830.0,2.24984643]
[1748907583624,0.19921265,105840.0,105830.0,2.40975846]
[1748907583829,0.19921265,105840.0,105830.0,2.26261286]
[1748907584424,0.19921265,105840.0,105830.0,2.16678189]
[1748907584831,0.01034165,105840.0,105830.0,2.03702524]
[1748907585028,0.01034165,105840.0,105830.0,2.16678189]
[1748907585218,0.01034165,105840.0,105830.0,2.16681831]
[1748907586732,0.01034165,105840.0,105830.0,2.1668187]
[1748907588634,0.01034165,105840.0,105830.0,2.14520976]
[1748907589028,0.01034165,105840.0,105830.0,2.17917186]
[1748907589525,0.01034165,105840.0,105830.0,2.27500283]
[1748907589726,0.01034165,105840.0,105830.0,2.08638827]
[1748907590029,0.01034165,105840.0,105830.0,2.38473404]
[1748907590336,0.01034165,105840.0,105830.0,2.26730931]
[1748907590537,0.01034165,105840.0,105830.0,2.18344034]
[1748907591044,0.01034165,105840.0,105830.0,2.26308164]
[1748907591340,0.01034165,105840.0,105830.0,2.17919266]
[1748907591732,0.01034165,105840.0,105830.0,2.04939959]
[1748907592128,0.01034165,105840.0,105830.0,2.19654519]
[1748907592332,0.01034165,105840.0,105830.0,2.29241831]
[1748907595241,0.01034165,105840.0,105830.0,2.42221138]
[1748907596043,0.01034165,105840.0,105830.0,2.42646092]
[1748907597430,0.01014165,105840.0,105830.0,2.42646092]
[1748907598146,0.01014165,105840.0,105830.0,2.42231325]
[1748907598338,0.01014165,105840.0,105830.0,2.29252018]
[1748907598846,0.01014165,105840.0,105830.0,2.19664706]
[1748907600453,0.01014165,105840.0,105830.0,2.29272908]
[1748907601037,0.01014165,105840.0,105830.0,2.29272758]
[1748907601438,0.01014165,105840.0,105830.0,2.42252065]
[1748907603344,0.01014165,105840.0,105830.0,3.49360065]
[1748907603742,0.01034165,105840.0,105830.0,3.49360065]
[1748907604148,0.01034165,105840.0,105830.0,3.23400874]
[1748907604341,0.01034165,105840.0,105830.0,3.25036726]
[1748907604744,0.01014165,105840.0,105830.0,3.41176715]
[1748907604944,0.01034165,105840.0,105830.0,3.6160379]
[1748907605145,0.01034165,105840.0,105830.0,3.63244926]
[1748907605642,0.01034165,105840.0,105830.0,3.50265619]
[1748907605846,0.00434165,105840.0,105830.0,3.63644926]
[1748907606245,0.00434165,105840.0,105830.0,3.63219972]
[1748907606646,0.00234165,105840.0,105830.0,3.63619972]
[1748907608150,0.00234165,105840.0,105830.0,3.78332383]
[1748907608343,0.00234165,105840.0,105830.0,3.50152123]
[1748907611150,0.00234165,105840.0,105830.0,3.50577077]
[1748907612048,0.00234165,105840.0,105830.0,3.50576939]
[1748907612246,0.00234165,105840.0,105830.0,3.50151985]
[1748907614953,0.031,105860.0,105830.0,3.39187503]
[1748907615155,0.0635,105860.0,105850.0,1.01092331]
[1748907615458,0.2525351,105860.0,105850.0,2.26563492]
[1748907615643,0.2523351,105860.0,105850.0,2.55712106]
[1748907615850,0.2525351,105860.0,105850.0,2.70420605]
[1748907616250,0.2545352,105860.0,105850.0,2.45508287]
[1748907616556,0.0657,105860.0,105850.0,2.45508287]
[1748907616750,0.2545352,105860.0,105850.0,2.58487594]
[1748907617355,0.0677,105860.0,105850.0,2.66122825]
[1748907617549,0.0675,105860.0,105850.0,2.18351109]
[1748907617853,0.0717,105860.0,105850.0,2.44309723]
[1748907618057,0.2605352,105860.0,105850.0,2.23041925]
[1748907618246,0.0717,105860.0,105850.0,2.14647431]
[1748907618449,0.0717,105860.0,105850.0,2.46507329]
[1748907618649,0.0717,105860.0,105850.0,2.49892905]
[1748907618853,0.0717,105860.0,105850.0,2.36913598]
[1748907619057,0.0717,105860.0,105850.0,2.49892905]
[1748907620360,0.0717,105860.0,105850.0,2.50317859]
[1748907620862,0.0717,105860.0,105850.0,2.35605448]
[1748907621559,0.0717,105860.0,105850.0,2.22626141]
[1748907621758,0.0717,105860.0,105850.0,2.35605448]
[1748907622054,0.0717,105860.0,105850.0,2.22626141]
[1748907622760,0.0717,105860.0,105850.0,1.77362141]
[1748907622961,0.0717,105860.0,105850.0,2.35585448]
[1748907623465,0.0717,105860.0,105850.0,2.35580107]
[1748907624553,0.0717,105860.0,105850.0,2.43964333]
[1748907625161,0.0717,105860.0,105850.0,2.35580107]
[1748907625365,0.0717,105860.0,105850.0,2.22600618]
[1748907625560,0.0717,105860.0,105850.0,2.48559232]
[1748907626156,0.0717,105860.0,105850.0,2.63271643]
[1748907627056,0.0717,105860.0,105850.0,2.40583029]
[1748907627255,0.0717,105860.0,105850.0,2.6185635]
[1748907627447,0.0717,105860.0,105850.0,2.66541038]
[1748907627652,0.0717,105860.0,105850.0,2.76122138]
[1748907627858,0.0717,105860.0,105850.0,2.76114138]
[1748907631560,0.0717,105860.0,105850.0,2.76113738]
[1748907631861,0.00214165,105870.0,105860.0,0.1888352]
[1748907632062,0.00214165,105870.0,105860.0,2.13296937]
[1748907632264,0.00234165,105870.0,105860.0,2.13296937]
[1748907632456,0.03244165,105870.0,105860.0,1.85163385]
[1748907632651,0.03244165,105870.0,105860.0,2.07962899]
[1748907632855,0.03844165,105870.0,105860.0,1.23896978]
[1748907633056,0.03844165,105870.0,105860.0,2.08062899]
[1748907633264,0.04044165,105870.0,105860.0,1.82096583]
[1748907633765,0.04044165,105870.0,105860.0,1.94753675]
[1748907634263,0.04044165,105870.0,105860.0,1.3655407]
[1748907634465,0.04044165,105870.0,105860.0,1.49525675]
[1748907634769,0.04044165,105870.0,105860.0,1.94749675]
[1748907634958,0.04044165,105870.0,105860.0,1.49525675]
[1748907635160,0.04044165,105870.0,105860.0,1.90065387]
[1748907635474,0.04044165,105870.0,105860.0,1.34849181]
[1748907635660,0.04044165,105870.0,105860.0,1.35274135]
[1748907635962,0.04044165,105870.0,105860.0,1.80494135]
[1748907636664,0.04044165,105870.0,105860.0,1.95167305]
[1748907636858,0.04044165,105870.0,105860.0,1.821957]
[1748907637067,0.04044165,105870.0,105860.0,1.95167305]
[1748907637362,0.04044165,105870.0,105860.0,1.80494135]
[1748907637763,0.04044165,105870.0,105860.0,1.95167305]
[1748907638158,0.04044165,105870.0,105860.0,1.80494135]
[1748907638360,0.04044165,105870.0,105860.0,1.80494009]
[1748907638568,0.04044165,105870.0,105860.0,1.82199195]
[1748907638776,0.04044165,105870.0,105860.0,1.96872365]
[1748907639072,0.04044165,105870.0,105860.0,1.92191527]
[1748907639379,0.04044165,105870.0,105860.0,1.96872583]
[1748907640272,0.04044165,105870.0,105860.0,1.83896978]
[1748907640578,0.04044165,105870.0,105860.0,1.96868583]
[1748907641466,0.04044165,105870.0,105860.0,1.74319886]
[1748907641672,0.04044165,105870.0,105860.0,1.87291491]
[1748907641980,0.03844165,105870.0,105860.0,1.87309229]
[1748907642172,0.03244165,105870.0,105860.0,1.87209229]
[1748907642969,0.03244165,105870.0,105860.0,1.87229315]
[1748907643171,0.00214165,105870.0,105860.0,1.97225315]
[1748907643669,0.00214165,105870.0,105860.0,3.20440042]
[1748907643866,0.00234165,105870.0,105860.0,3.20440042]
[1748907644082,0.00214165,105870.0,105860.0,3.20440042]
[1748907644279,0.00234165,105870.0,105860.0,3.20440042]
[1748907644881,0.02991836,105890.0,105880.0,0.2359991]
[1748907645087,0.02991836,105890.0,105880.0,1.92004656]
[1748907645289,0.02991836,105890.0,105880.0,1.89363283]
[1748907645487,0.02991836,105890.0,105880.0,1.81487434]
[1748907645988,0.02991836,105890.0,105880.0,1.94459039]
[1748907646189,0.03011836,105890.0,105880.0,1.94459039]
[1748907646692,0.03011836,105890.0,105880.0,1.94457878]
[1748907646988,0.03011836,105890.0,105880.0,1.81486273]
[1748907647187,0.03011836,105890.0,105880.0,2.02831215]
[1748907647489,0.03011836,105890.0,105880.0,1.9815132]
[1748907647892,0.03011836,105890.0,105880.0,1.85179715]
[1748907648097,0.03011836,105890.0,105880.0,1.9815132]
[1748907648594,0.03011836,105890.0,105880.0,2.02831215]
[1748907649593,0.03011836,105890.0,105880.0,2.1454999]
[1748907649792,0.03011836,105890.0,105880.0,1.99873273]
[1748907650389,0.03011836,105890.0,105880.0,1.99867807]
[1748907650591,0.03011836,105890.0,105880.0,1.95193378]
[1748907650994,0.03011836,105890.0,105880.0,1.82221773]
[1748907651389,0.03011836,105890.0,105880.0,1.95193378]
[1748907651592,0.03011836,105890.0,105880.0,1.99867807]
[1748907651786,0.03011836,105890.0,105880.0,1.9149447]
[1748907652098,0.03011836,105890.0,105880.0,1.78522865]
[1748907652288,0.03011836,105890.0,105880.0,1.9149447]
[1748907652490,0.03011836,105890.0,105880.0,1.66981042]
[1748907652886,0.56334406,105890.0,105880.0,0.31]
[1748907653092,0.95714406,105890.0,105880.0,0.96554011]
[1748907653798,0.95714406,105890.0,105880.0,1.09525616]
[1748907654497,0.95714406,105890.0,105880.0,0.49829616]
[1748907654795,0.95714406,105890.0,105880.0,0.96934965]
[1748907655598,0.95714406,105890.0,105880.0,0.37282965]
[1748907655798,0.95714406,105890.0,105880.0,0.96886965]
[1748907656198,0.95714406,105890.0,105880.0,1.05675784]
[1748907656698,0.95714406,105890.0,105880.0,1.18712288]
[1748907657198,0.95714406,105890.0,105880.0,1.1426651]
[1748907657587,0.95714406,105890.0,105880.0,1.3754039]
[1748907657794,0.97605716,105890.0,105880.0,1.3754039]
[1748907658202,0.72605716,105890.0,105880.0,1.3314676]
[1748907658394,0.72605716,105890.0,105880.0,1.41935579]
[1748907658596,0.72605716,105890.0,105880.0,1.15714915]
[1748907659107,0.72605716,105890.0,105880.0,0.68482915]
[1748907659294,0.72605716,105890.0,105880.0,1.15650915]
[1748907659493,0.72605716,105890.0,105880.0,0.96770965]
[1748907659694,0.72605716,105890.0,105880.0,0.37282965]
[1748907659893,0.72605716,105890.0,105880.0,0.49602965]
[1748907660189,0.72605716,105890.0,105880.0,0.96742965]
[1748907661997,1.12577321,105890.0,105880.0,0.19]
[1748907662197,0.1887995,105880.0,105870.0,0.02375173]
[1748907662395,0.77411555,105880.0,105870.0,0.13361008]
[1748907662592,1.11856756,105880.0,105870.0,0.02043173]
[1748907662793,1.11856756,105880.0,105860.0,0.12805009]
[1748907662794,0.20752913,105870.0,105860.0,0.12805009]
[1748907662995,0.80355738,105870.0,105860.0,0.18187]
[1748907663190,1.15801738,105870.0,105860.0,0.03874]
[1748907663597,0.1888351,105860.0,105850.0,0.71388781]
[1748907663806,0.5496351,105860.0,105850.0,1.08388781]
[1748907664006,0.8941031,105860.0,105850.0,1.08388781]
[1748907664505,0.8941031,105860.0,105850.0,0.96670006]
[1748907666194,0.8941031,105860.0,105850.0,0.97170006]
[1748907666403,0.9093031,105860.0,105850.0,0.97770006]
[1748907667006,0.9093031,105860.0,105850.0,0.9819496]
[1748907667201,0.6593031,105860.0,105850.0,0.9819496]
[1748907667706,0.6593031,105860.0,105850.0,1.0119496]
[1748907668103,0.6593031,105860.0,105850.0,1.00770006]
[1748907669806,0.6593031,105860.0,105850.0,1.04100006]
[1748907670108,0.6593031,105860.0,105850.0,1.04092006]
[1748907670702,0.6593031,105860.0,105850.0,1.03940006]
[1748907671401,0.6593031,105860.0,105850.0,1.03912006]
[1748907672308,0.6593031,105860.0,105850.0,1.03412006]
[1748907672807,0.6593031,105860.0,105850.0,1.02812006]
[1748907673707,0.6593031,105860.0,105850.0,1.02736006]
[1748907673901,0.6593031,105860.0,105850.0,0.37884006]
[1748907674106,0.6593031,105860.0,105850.0,0.97088006]
[1748907674305,0.6593031,105860.0,105850.0,0.50208006]
[1748907674510,0.6593031,105860.0,105850.0,0.97068006]
[1748907676001,0.6593031,105860.0,105850.0,0.97028006]
[1748907676203,0.78901915,105860.0,105850.0,0.97028006]
[1748907676405,0.6593031,105860.0,105850.0,0.97028006]
[1748907676902,0.6592031,105860.0,105850.0,0.97028006]
[1748907677608,0.6592031,105860.0,105850.0,0.96664006]
[1748907679405,0.6692031,105860.0,105850.0,0.96664006]
[1748907680106,0.6692031,105860.0,105850.0,0.96584006]
[1748907682410,0.6541031,105860.0,105850.0,0.96584006]
[1748907684007,0.6541031,105860.0,105850.0,0.93750006]
[1748907684207,0.6541031,105860.0,105850.0,0.90916006]
[1748907684521,0.5596351,105860.0,105850.0,0.6603]
[1748907686012,0.5696351,105860.0,105850.0,0.64862]
[1748907689214,0.5696351,105860.0,105850.0,0.18298]
[1748907689419,1.15381915,105860.0,105850.0,0.0633]
[1748907689612,1.22774174,105860.0,105850.0,0.0633]
[1748907689918,1.365959,105860.0,105850.0,0.0633]
[1748907690225,1.055959,105860.0,105850.0,0.0633]
[1748907690608,0.92624295,105860.0,105850.0,0.0633]
[1748907690907,0.96774174,105860.0,105850.0,0.0633]
[1748907691412,1.46374174,105860.0,105850.0,0.0633]
[1748907692109,1.551959,105860.0,105850.0,0.0633]
[1748907694110,1.551959,105860.0,105850.0,0.0333]
[1748907694413,1.551959,105860.0,105850.0,0.00662]
[1748907694610,1.551959,105860.0,105840.0,0.55525853]
[1748907694809,0.549653,105850.0,105840.0,0.21048688]
[1748907695010,0.56874507,105850.0,105840.0,0.67348688]
[1748907695309,0.69846112,105850.0,105840.0,0.21048688]
[1748907695518,0.77238371,105850.0,105840.0,0.21048688]
[1748907695717,0.80238371,105850.0,105840.0,0.181]
[1748907695904,0.80238371,105850.0,105820.0,0.002079]
[1748907695905,0.1888886,105830.0,105820.0,0.002079]
[1748907696108,0.1889065,105820.0,105810.0,0.93425683]
[1748907696306,0.1889065,105820.0,105810.0,1.41397348]
[1748907696510,0.1889065,105820.0,105810.0,1.56040581]
[1748907696718,0.1891065,105820.0,105810.0,1.92120581]
[1748907697108,0.1891065,105820.0,105810.0,1.45852581]
[1748907697309,0.1891065,105820.0,105810.0,1.56012581]
[1748907697510,0.1891065,105820.0,105810.0,1.77449348]
[1748907698010,0.1891065,105820.0,105810.0,1.80719348]
[1748907698216,0.1891065,105820.0,105810.0,1.81674368]
[1748907698604,0.1891065,105820.0,105810.0,1.24682368]
[1748907698808,0.1891065,105820.0,105810.0,1.82854368]
[1748907699217,0.1891065,105820.0,105810.0,1.56911158]
[1748907699520,0.1891065,105820.0,105810.0,1.82854368]
[1748907700220,0.1891065,105820.0,105810.0,1.69882763]
[1748907701326,0.1891065,105820.0,105810.0,1.76232763]
[1748907701813,0.1891065,105820.0,105810.0,1.40092763]
[1748907701814,0.5499065,105820.0,105810.0,1.40092763]
[1748907703812,0.5499065,105820.0,105810.0,1.08228728]
[1748907704005,0.5499065,105820.0,105810.0,1.21200333]
[1748907704208,0.5499065,105820.0,105810.0,1.40092773]
[1748907704720,0.1891065,105820.0,105810.0,1.76172773]
[1748907705216,0.1891065,105820.0,105810.0,1.84566566]
[1748907705614,0.1889065,105820.0,105810.0,1.84566566]
[1748907705809,0.1891065,105820.0,105810.0,1.8925233]
[1748907706016,0.1891065,105820.0,105810.0,1.89252317]
[1748907706211,0.1891065,105820.0,105810.0,1.76280712]
[1748907706410,0.1891065,105820.0,105810.0,1.89252317]
[1748907708013,0.1891065,105820.0,105810.0,1.53172317]
[1748907708214,0.1891065,105820.0,105810.0,1.89252317]
[1748907708810,0.5499065,105820.0,105810.0,1.53172317]
[1748907710309,0.5499065,105820.0,105810.0,1.54877129]
[1748907711219,0.1891065,105820.0,105810.0,1.54877129]
[1748907711926,0.1891065,105820.0,105810.0,1.55302083]
[1748907712427,0.1891065,105820.0,105810.0,1.4690829]
[1748907712925,0.1891065,105820.0,105810.0,1.46483336]
[1748907713723,0.1891065,105820.0,105810.0,1.44779846]
[1748907714423,0.1891065,105820.0,105810.0,1.54372752]
[1748907714724,0.1889065,105820.0,105810.0,1.54372752]
[1748907715025,0.1891065,105820.0,105810.0,1.54372752]
[1748907715914,0.1891065,105820.0,105810.0,1.41401147]
[1748907716124,0.1891065,105820.0,105810.0,1.54372752]
[1748907716333,0.1891065,105820.0,105810.0,1.41401147]
[1748907716818,0.1891065,105820.0,105810.0,1.54372752]
[1748907717022,0.1891065,105820.0,105810.0,1.93831451]
[1748907717214,0.1891065,105820.0,105810.0,2.02219124]
[1748907717215,0.1889065,105820.0,105810.0,2.02219124]
[1748907717411,0.1889065,105820.0,105810.0,2.1181203]
[1748907717412,0.1891065,105820.0,105810.0,2.1181203]
[1748907717612,0.1891065,105820.0,105810.0,2.07554126]
[1748907717825,0.1891065,105820.0,105810.0,2.18332707]
[1748907718025,0.4761657,105840.0,105830.0,0.1888886]
[1748907718328,0.3044543,105840.0,105830.0,1.83340781]
[1748907718628,0.3042543,105840.0,105830.0,1.90115088]
[1748907718819,0.3044543,105840.0,105830.0,1.78371875]
[1748907719021,0.3044543,105840.0,105830.0,2.00911172]
[1748907719222,0.3042543,105840.0,105830.0,2.00911172]
[1748907719623,0.3042543,105840.0,105830.0,2.02106888]
[1748907719832,0.3044543,105840.0,105830.0,2.02106888]
[1748907720631,0.3042543,105840.0,105830.0,2.02106888]
[1748907720929,0.3042543,105840.0,105830.0,2.02104946]
[1748907720930,0.3044543,105840.0,105830.0,2.02104946]
[1748907721330,0.2572337,105840.0,105830.0,2.02104946]
[1748907721729,0.2572337,105840.0,105830.0,1.91326365]
[1748907723322,0.2100136,105840.0,105830.0,2.0090061]
[1748907723726,0.2100136,105840.0,105830.0,1.91319994]
[1748907724323,0.2100136,105840.0,105830.0,1.42124317]
[1748907724531,0.2100136,105840.0,105830.0,1.87900317]
[1748907724833,0.2100136,105840.0,105830.0,2.00871922]
[1748907726335,0.2100136,105840.0,105830.0,2.04336698]
[1748907728334,0.2100136,105840.0,105830.0,1.92593485]
[1748907729727,0.00234165,105840.0,105830.0,1.92593485]
[1748907729927,0.19121235,105840.0,105830.0,1.61254338]
[1748907730128,0.00214165,105840.0,105830.0,1.84222825]
[1748907730325,0.1888565,105850.0,105840.0,0.3304983]
[1748907730532,0.1888565,105850.0,105840.0,1.45470121]
[1748907730728,0.1888565,105850.0,105840.0,1.48847731]
[1748907730933,0.1890565,105850.0,105840.0,1.48847731]
[1748907731135,0.1890565,105850.0,105840.0,1.488407]
[1748907731345,0.1890565,105850.0,105840.0,1.57203775]
[1748907731532,0.1890565,105850.0,105840.0,1.57202628]
[1748907731731,0.1900565,105850.0,105840.0,1.57202628]
[1748907731934,0.1900565,105850.0,105840.0,1.57203032]
[1748907732232,0.1900565,105850.0,105840.0,1.58411885]
[1748907732427,0.1900565,105850.0,105840.0,1.48839957]
[1748907733633,0.1900565,105850.0,105840.0,1.45457581]
[1748907734541,0.1900565,105850.0,105840.0,1.54238965]
[1748907734940,0.1900565,105850.0,105840.0,1.54236981]
[1748907739442,0.1900565,105850.0,105840.0,1.45455597]
[1748907739638,0.1900565,105850.0,105840.0,1.19512387]
[1748907739836,0.1900565,105850.0,105840.0,1.45455597]
[1748907740238,0.1900565,105850.0,105840.0,1.91696551]
[1748907740432,0.1900565,105850.0,105840.0,2.00476369]
[1748907740640,0.1900565,105850.0,105840.0,1.91696551]
[1748907741037,0.1890565,105850.0,105840.0,1.91696551]
[1748907741232,0.33062595,105860.0,105850.0,0.1888529]
[1748907741540,0.33062595,105860.0,105850.0,1.42875566]
[1748907741736,0.33062595,105860.0,105850.0,1.29903961]
[1748907741939,0.33062595,105860.0,105850.0,1.59330604]
[1748907742335,0.33162595,105860.0,105850.0,1.59330604]
[1748907742643,0.33162595,105860.0,105850.0,1.59331487]
[1748907743450,0.33162595,105860.0,105850.0,1.53477718]
[1748907743643,0.33162595,105860.0,105850.0,1.45118536]
[1748907743843,0.33162595,105860.0,105850.0,1.32146931]
[1748907744045,0.33162595,105860.0,105850.0,1.59339986]